fUST/lending_fUST_20250108
["ID","MTS","AMOUNT","RATE_DAILY","PERIOD"]
[348129272,1736345446683,-500.0,0.00019178,2]
[348129273,1736345446692,-524.59,0.00019178,2]
[348129274,1736345446702,-500.0,0.00019178,2]
[348129275,1736345446712,-1916.51,0.00019178,2]
[348129276,1736345446722,-500.0,0.00019178,2]
[348129277,1736345446731,-500.0,0.00019178,2]
[348129278,1736345446740,-500.0,0.00019178,2]
[348129279,1736345446752,-500.0,0.00019178,2]
[348129280,1736345446761,-500.0,0.00019178,2]
[348129281,1736345446771,-548.92,0.00019178,2]
[348129282,1736345446780,-500.0,0.00019178,2]
[348129283,1736345446789,-1407.91,0.00019178,2]
[348129284,1736345446798,-167.896944,0.00019178,2]
[348129285,1736345446807,-438.4840796,0.000192,2]
[348129286,1736345446816,-160.381845,0.000192,2]
[348129287,1736345446825,-500.0,0.00019451,3]
[348129288,1736345446835,-500.0,0.00019451,3]
[348129289,1736345446844,-500.0,0.00019451,3]
[348129290,1736345446853,-231.91932505,0.00019451,2]
[348129291,1736345446863,-500.0,0.00019451,3]
[348129292,1736345446872,-500.0,0.00019451,3]
[348129293,1736345446881,-500.0,0.00019451,3]
[348129294,1736345446891,-531.79886778,0.00019451,3]
[348129295,1736345446900,-500.0,0.00019452,3]
[348129296,1736345446909,-500.0,0.00019452,3]
[348129297,1736345446919,-500.0,0.00019452,3]
[348129298,1736345446928,-427.57378834,0.00019452,3]
[348129299,1736345446938,-500.0,0.00019452,3]
[348129300,1736345446948,-500.0,0.00019452,3]
[348129301,1736345446958,-500.0,0.00019452,3]
[348129302,1736345446968,-500.0,0.00019452,3]
[348129303,1736345446978,-500.0,0.00019452,3]
[348129304,1736345446987,-500.0,0.00019452,3]
[348129305,1736345446999,-500.0,0.00019452,3]
[348129306,1736345447010,-500.0,0.00019452,3]
[348129307,1736345447020,-500.0,0.00019452,3]
[348129308,1736345447030,-500.0,0.00019452,3]
[348129309,1736345447112,-500.0,0.00019452,3]
[348129310,1736345447134,-500.0,0.00019452,3]
[348129311,1736345447144,-500.0,0.00019452,3]
[348129312,1736345447154,-500.0,0.00019452,3]
[348129313,1736345447163,-500.0,0.00019452,3]
[348129314,1736345447172,-500.0,0.00019452,3]
[348129315,1736345447182,-5640.17,0.00019452,3]
[348129316,1736345447191,-500.0,0.00019452,3]
[348129317,1736345447201,-500.0,0.00019452,3]
[348129318,1736345447212,-500.0,0.00019452,3]
[348129319,1736345447222,-1231.7,0.00019452,3]
[348129320,1736345447231,-500.0,0.00019452,3]
[348129321,1736345447241,-500.0,0.00019452,3]
[348129322,1736345447251,-500.0,0.00019452,3]
[348129323,1736345447261,-10184.74839497,0.00019452,3]
[348129329,1736346118651,167.051486,0.00013973,2]
[348129331,1736346426140,-264.63951413,0.00016667,2]
[348129332,1736346426163,-215.73263829,0.00016835,2]
[348129333,1736346454022,-451.18657984,0.00016835,2]
[348129334,1736346454048,-250.0,0.00017578,2]
[348129335,1736346454072,-38.37235809,0.00017886,2]
[348129336,1736346456067,1000.0,0.00025,120]
[348129337,1736346473979,373.10779508,0.00016,2]
[348129338,1736346545104,-490.0,0.00017,2]
[348129339,1736346545126,-1266.08688729,0.00017707,2]
[348129340,1736346545148,-201.50938191,0.00017886,2]
[348129341,1736346545172,-300.0,0.00017933,2]
[348129342,1736346545195,-24900.0,0.00017934,2]
[348129343,1736346545217,-1000.0,0.00018,18]
[348129344,1736346545240,-654.94777401,0.00018548,2]
[348129345,1736346545269,-320.11252742,0.000189,2]
[348129346,1736346545307,-597.54251742,0.000189,2]
[348129347,1736346545331,-743.223,0.0001892,2]
[348129348,1736346545357,-333.985,0.00019,2]
[348129349,1736346545381,-192.702,0.00019,2]
[348129350,1736346545405,-1000.0,0.00019,19]
[348129351,1736346545429,-1000.0,0.00019,2]
[348129352,1736346545453,-160.5410801,0.00019068,2]
[348129353,1736346545478,-153.7772247,0.00019068,2]
[348129354,1736346545502,-214.7048389,0.00019068,2]
[348129355,1736346545525,-153.7772247,0.00019068,2]
[348129356,1736346545547,-214.7048389,0.00019068,2]
[348129357,1736346554988,153.7772247,0.00019068,2]
[348129358,1736346555496,214.7048389,0.00019068,2]
[348129359,1736346585737,378.30119112,0.00019078,2]
[348129376,1736346632346,-151.0,0.00019166,2]
[348129377,1736346632357,-300.0,0.00019172,2]
[348129378,1736346632367,-138.16786304,0.00019173,2]
[348129379,1736346632412,-17.22213696,0.00019173,2]
[348129380,1736346632422,-500.0,0.00019173,2]
[348129381,1736346632431,-266.91922215,0.00019173,2]
[348129382,1736346632441,-151.9,0.00019173,2]
[348129383,1736346632450,-500.0,0.00019177,2]
[348129384,1736346632460,-500.0,0.00019177,2]
[348129385,1736346632470,-500.0,0.00019177,2]
[348129386,1736346632479,-500.0,0.00019177,2]
[348129388,1736346632489,-500.0,0.00019177,2]
[348129390,1736346632499,-500.0,0.00019177,2]
[348129392,1736346632511,-500.0,0.00019177,2]
[348129393,1736346632520,-500.0,0.00019177,2]
[348129394,1736346632530,-500.0,0.00019177,2]
[348129395,1736346632540,-500.0,0.00019177,2]
[348129396,1736346632549,-500.0,0.00019177,2]
[348129397,1736346632558,-500.0,0.00019177,2]
[348129398,1736346632568,-153.86857958,0.00019177,2]
[348129399,1736346632577,-500.0,0.00019177,2]
[348129400,1736346632587,-300.0,0.00019177,2]
[348129401,1736346632597,-302.8614059,0.00019177,2]
[348129402,1736346632606,-500.0,0.00019177,2]
[348129403,1736346632615,-500.0,0.00019177,2]
[348129404,1736346632625,-300.0,0.00019177,2]
[348129405,1736346632633,-500.0,0.00019177,2]
[348129406,1736346632643,-500.0,0.00019177,2]
[348129407,1736346632653,-650.0,0.00019177,2]
[348129408,1736346632663,-200.0,0.00019177,2]
[348129409,1736346632672,-225.5474945,0.00019177,2]
[348129410,1736346632682,-357.60498013,0.00019177,2]
[348129411,1736346632691,-500.0,0.00019177,2]
[348129412,1736346632700,-500.0,0.00019177,2]
[348129413,1736346632709,-500.0,0.00019177,2]
[348129414,1736346632719,-310.14533258,0.00019177,2]
[348129415,1736346632729,-500.0,0.00019177,2]
[348129416,1736346632739,-500.0,0.00019177,2]
[348129417,1736346632749,-500.0,0.00019177,2]
[348129418,1736346632760,-214.6654537,0.00019177,2]
[348129419,1736346632769,-602.89077324,0.00019177,2]
[348129420,1736346632779,-505.65156595,0.00019178,2]
[348129421,1736346632789,-498.8031993,0.00019178,2]
[348129422,1736346632799,-500.0,0.00019178,2]
[348129423,1736346632808,-500.0,0.00019178,2]
[348129424,1736346632818,-500.0,0.00019178,2]
[348129425,1736346632827,-500.0,0.00019178,2]
[348129426,1736346632837,-47.51985599,0.00019178,2]
[348129427,1736346632877,-455.58974348,0.00019178,2]
[348129428,1736346632887,-500.0,0.00019178,2]
[348129429,1736346632896,-500.0,0.00019178,2]
[348129430,1736346632906,-500.0,0.00019178,2]
[348129431,1736346632916,-500.0,0.00019178,2]
[348129432,1736346632926,-164.59711212,0.00019178,2]
[348129433,1736346632935,-500.0,0.00019178,2]
[348129434,1736346632945,-210.98386306,0.00019178,2]
[348129435,1736346632955,-500.0,0.00019178,2]
[348129436,1736346632966,-500.0,0.00019178,2]
[348129437,1736346632976,-500.0,0.00019178,2]
[348129438,1736346632985,-500.0,0.00019178,2]
[348129439,1736346632995,-500.0,0.00019178,2]
[348129440,1736346633004,-500.54984235,0.00019178,2]
[348129441,1736346633016,-158.48,0.00019178,2]
[348129442,1736346633027,-500.0,0.00019178,2]
[348129443,1736346633038,-500.0,0.00019178,2]
[348129444,1736346633048,-500.0,0.00019178,2]
[348129445,1736346633058,-500.0,0.00019178,2]
[348129446,1736346633069,-528.26951452,0.00019178,2]
[348129447,1736346633079,-500.0,0.00019178,2]
[348129448,1736346633090,-500.0,0.00019178,2]
[348129449,1736346633100,-500.0,0.00019178,2]
[348129450,1736346633110,-500.0,0.00019178,2]
[348129451,1736346633120,-4958.67,0.00019178,2]
[348129452,1736346633131,-500.0,0.00019178,2]
[348129453,1736346633141,-500.0,0.00019178,2]
[348129454,1736346633151,-500.0,0.00019178,2]
[348129455,1736346633161,-500.0,0.00019178,2]
[348129456,1736346633171,-500.0,0.00019178,2]
[348129457,1736346633180,-500.0,0.00019178,2]
[348129458,1736346633191,-500.0,0.00019178,2]
[348129459,1736346633200,-500.0,0.00019178,2]
[348129460,1736346633210,-396.02622332,0.00019178,2]
[348129461,1736346633220,-500.0,0.00019178,5]
[348129462,1736346633229,-500.0,0.00019178,2]
[348129463,1736346633240,-500.0,0.00019178,2]
[348129464,1736346633250,-500.0,0.00019178,2]
[348129465,1736346633260,-500.0,0.00019178,2]
[348129466,1736346633270,-500.0,0.00019178,2]
[348129467,1736346633280,-294.42373908,0.00019178,2]
[348129468,1736346633290,-500.0,0.00019178,2]
[348129469,1736346633300,-500.0,0.00019178,2]
[348129470,1736346633310,-500.0,0.00019178,2]
[348129471,1736346633321,-500.0,0.00019178,2]
[348129472,1736346633331,-500.0,0.00019178,2]
[348129473,1736346633341,-500.0,0.00019178,2]
[348129474,1736346633352,-500.0,0.00019178,2]
[348129475,1736346633362,-485.75228194,0.00019178,2]
[348129476,1736346633372,-500.0,0.00019178,2]
[348129477,1736346633382,-500.0,0.00019178,2]
[348129478,1736346633393,-500.0,0.00019178,2]
[348129479,1736346633403,-500.0,0.00019178,2]
[348129480,1736346633412,-5337.25,0.00019178,2]
[348129481,1736346633421,-500.0,0.00019178,2]
[348129482,1736346633431,-223.17490613,0.00019178,2]
[348129483,1736346633442,-500.0,0.00019178,2]
[348129484,1736346633452,-500.0,0.00019178,2]
[348129485,1736346633463,-500.0,0.00019178,2]
[348129486,1736346633473,-709.6,0.00019178,2]
[348129487,1736346633483,-939.43,0.00019178,2]
[348129488,1736346633493,-2987.08,0.00019178,2]
[348129489,1736346633503,-500.0,0.00019178,2]
[348129490,1736346633514,-1191.56,0.00019178,2]
[348129491,1736346633524,-500.0,0.00019178,2]
[348129492,1736346633535,-884.71,0.00019178,2]
[348129493,1736346633545,-500.0,0.00019178,2]
[348129494,1736346633555,-500.0,0.00019178,2]
[348129495,1736346633565,-751.07,0.00019178,2]
[348129496,1736346633575,-500.0,0.00019178,2]
[348129497,1736346633584,-500.0,0.00019178,2]
[348129498,1736346633594,-500.0,0.00019178,2]
[348129499,1736346633602,-2573.13,0.00019178,2]
[348129500,1736346633613,-500.0,0.00019178,2]
[348129501,1736346633623,-863.54,0.00019178,2]
[348129502,1736346633633,-500.0,0.00019178,2]
[348129503,1736346633643,-500.0,0.00019178,2]
[348129504,1736346633654,-500.0,0.00019178,2]
[348129505,1736346633663,-500.0,0.00019178,2]
[348129506,1736346633674,-500.0,0.00019178,2]
[348129507,1736346633684,-504.16359449,0.00019178,2]
[348129508,1736346633694,-615.19128429,0.00019178,2]
[348129509,1736346633704,-500.0,0.00019178,2]
[348129510,1736346633715,-500.0,0.00019178,2]
[348129511,1736346633725,-507.96854373,0.00019178,2]
[348129512,1736346633736,-500.0,0.00019178,2]
[348129513,1736346633746,-500.0,0.00019178,2]
[348129514,1736346633756,-551.85,0.00019178,2]
[348129515,1736346633768,-500.0,0.00019178,2]
[348129516,1736346633778,-510.44336721,0.00019178,2]
[348129517,1736346633787,-670.74,0.00019178,2]
[348129518,1736346633797,-500.0,0.00019178,2]
[348129519,1736346633807,-500.0,0.00019178,2]
[348129520,1736346633817,-500.0,0.00019178,2]
[348129521,1736346633827,-1905.64,0.00019178,2]
[348129522,1736346633836,-500.0,0.00019178,2]
[348129523,1736346633846,-500.0,0.00019178,2]
[348129524,1736346633932,-500.0,0.00019178,2]
[348129525,1736346633957,-500.0,0.00019178,2]
[348129526,1736346633967,-567.32,0.00019178,2]
[348129527,1736346633978,-1508.72,0.00019178,2]
[348129528,1736346633988,-500.0,0.00019178,2]
[348129529,1736346633998,-1618.01,0.00019178,2]
[348129530,1736346634010,-867.84,0.00019178,2]
[348129531,1736346634019,-500.0,0.00019178,2]
[348129532,1736346634029,-500.0,0.00019178,2]
[348129533,1736346634039,-500.0,0.00019178,2]
[348129534,1736346634049,-782.78,0.00019178,2]
[348129535,1736346634059,-706.34,0.00019178,2]
[348129536,1736346634069,-500.0,0.00019178,2]
[348129537,1736346634078,-500.0,0.00019178,2]
[348129538,1736346634089,-500.0,0.00019178,2]
[348129539,1736346634099,-500.0,0.00019178,2]
[348129540,1736346634109,-500.0,0.00019178,2]
[348129541,1736346634118,-500.0,0.00019178,2]
[348129542,1736346634128,-19994.43,0.00019178,2]
[348129543,1736346634138,-500.0,0.00019178,2]
[348129544,1736346634148,-567.72,0.00019178,2]
[348129545,1736346634158,-1410.19,0.00019178,2]
[348129546,1736346634168,-500.0,0.00019178,2]
[348129547,1736346634178,-167.020577,0.00019178,2]
[348129548,1736346634187,-1009.0,0.000192,7]
[348129549,1736346634197,-155.0434598,0.00019315,2]
[348129550,1736346634207,-10034.57745341,0.0001944,2]
[348129551,1736346634216,-236.34,0.00019452,3]
[348129552,1736346634226,-151.0,0.00019452,2]
[348129553,1736346634236,-497.5012495,0.00019452,3]
[348129554,1736346634246,-500.0,0.00019452,3]
[348129555,1736346634255,-500.0,0.00019452,3]
[348129556,1736346634266,-151.0,0.00019452,2]
[348129557,1736346634276,-500.0,0.00019452,3]
[348129558,1736346634286,-500.0,0.00019452,3]
[348129559,1736346634296,-4958.67,0.00019452,3]
[348129560,1736346634306,-500.0,0.00019452,3]
[348129561,1736346634316,-500.0,0.00019452,3]
[348129562,1736346634327,-500.0,0.00019452,3]
[348129563,1736346634337,-500.0,0.00019452,3]
[348129564,1736346634347,-500.0,0.00019452,3]
[348129565,1736346634357,-500.0,0.00019452,3]
[348129566,1736346634368,-500.0,0.00019452,3]
[348129567,1736346634378,-151.0,0.00019452,2]
[348129568,1736346634388,-151.0,0.00019452,2]
[348129569,1736346634399,-291.873354,0.00019452,2]
[348129570,1736346634409,-446.49981723,0.00019452,3]
[348129571,1736346634420,-500.0,0.00019452,3]
[348129572,1736346634431,-500.0,0.00019452,3]
[348129573,1736346634441,-500.0,0.00019452,3]
[348129574,1736346634452,-500.0,0.00019452,3]
[348129575,1736346634462,-500.0,0.00019452,3]
[348129576,1736346634472,-500.0,0.00019452,3]
[348129577,1736346634481,-500.0,0.00019452,3]
[348129578,1736346634491,-151.0,0.00019452,2]
[348129579,1736346634502,-4696.34610449,0.00019452,3]
[348129580,1736346634519,-640.90389551,0.00019452,3]
[348129581,1736346634529,-500.0,0.00019452,3]
[348129582,1736346634539,-500.0,0.00019452,3]
[348129583,1736346634549,-151.0,0.00019452,2]
[348129584,1736346634559,-151.0,0.00019452,2]
[348129585,1736346634569,-709.6,0.00019452,3]
[348129586,1736346634579,-939.43,0.00019452,3]
[348129587,1736346634589,-2987.08,0.00019452,3]
[348129588,1736346634599,-1191.56,0.00019452,3]
[348129589,1736346634609,-884.71,0.00019452,3]
[348129590,1736346634619,-500.0,0.00019452,3]
[348129591,1736346634628,-9.28157641,0.00019452,3]
[348129600,1736346638373,-301.79,0.00019173,2]
[348129604,1736346638389,-198.21,0.00019173,2]
[348129607,1736346638403,-560.12842359,0.00019452,3]
[348129609,1736346638414,-751.07,0.00019452,3]
[348129610,1736346638425,-500.0,0.00019452,3]
[348129611,1736346638437,-500.0,0.00019452,3]
[348129613,1736346638448,-2573.13,0.00019452,3]
[348129614,1736346638461,-863.54,0.00019452,3]
[348129615,1736346638474,-500.0,0.00019452,3]
[348129616,1736346638487,-151.0,0.00019452,2]
[348129617,1736346638500,-151.0,0.00019452,2]
[348129618,1736346638517,-500.0,0.00019452,3]
[348129619,1736346638531,-147.01578543,0.00019452,3]
[348129620,1736346638548,-352.98421457,0.00019452,3]
[348129621,1736346638560,-551.85,0.00019452,3]
[348129622,1736346638572,-500.0,0.00019452,3]
[348129623,1736346638583,-500.0,0.00019452,3]
[348129624,1736346638596,-670.74,0.00019452,3]
[348129625,1736346638609,-500.0,0.00019452,3]
[348129626,1736346638624,-151.0,0.00019452,2]
[348129627,1736346638637,-1905.64,0.00019452,3]
[348129628,1736346638649,-500.0,0.00019452,3]
[348129629,1736346638661,-500.0,0.00019452,3]
[348129630,1736346638675,-500.0,0.00019452,3]
[348129631,1736346638687,-500.0,0.00019452,3]
[348129632,1736346638700,-567.32,0.00019452,3]
[348129633,1736346638712,-1508.72,0.00019452,3]
[348129634,1736346638725,-1618.01,0.00019452,3]
[348129635,1736346638737,-867.84,0.00019452,3]
[348129636,1736346638749,-500.0,0.00019452,3]
[348129637,1736346638760,-500.0,0.00019452,3]
[348129638,1736346638777,-782.78,0.00019452,3]
[348129639,1736346638789,-706.34,0.00019452,3]
[348129640,1736346638800,-171.520228,0.00019452,2]
[348129641,1736346638812,-171.520228,0.00019452,2]
[348129642,1736346638823,-500.0,0.00019452,3]
[348129643,1736346638833,-500.0,0.00019452,3]
[348129644,1736346638844,-500.0,0.00019452,3]
[348129645,1736346638855,-188.24499,0.00019452,2]
[348129646,1736346638866,-171.520228,0.00019452,2]
[348129647,1736346638880,-171.520228,0.00019452,2]
[348129648,1736346638891,-500.0,0.00019452,3]
[348129649,1736346638903,-188.24499,0.00019452,2]
[348129650,1736346638916,-151.0,0.00019452,2]
[348129651,1736346638927,-500.0,0.00019452,3]
[348129652,1736346638938,-151.0,0.00019452,2]
[348129653,1736346638949,-500.0,0.00019452,3]
[348129654,1736346638962,-151.0,0.00019452,2]
[348129655,1736346638974,-151.0,0.00019452,2]
[348129656,1736346638986,-19994.43,0.00019452,3]
[348129657,1736346638998,-500.0,0.00019452,3]
[348129658,1736346639009,-567.72,0.00019452,3]
[348129659,1736346639025,-1410.19,0.00019452,3]
[348129660,1736346639037,-160.09021764,0.00019473,2]
[348129661,1736346639049,-500.32998527,0.00019473,2]
[348129662,1736346639060,-153.7772247,0.000195,2]
[348129663,1736346639071,-214.7048389,0.000195,2]
[348129664,1736346639083,-493.83649097,0.00019588,2]
[348129665,1736346639095,-378.30119108,0.00019649,2]
[348129666,1736346639106,-301.8540808,0.00019714,2]
[348129667,1736346639117,-500.0,0.00019721,2]
[348129668,1736346639127,-190.34619753,0.00019725,2]
[348129669,1736346639137,-354.55132685,0.00019725,2]
[348129670,1736346639147,-256.13843077,0.00019725,2]
[348129671,1736346639156,-188.24499,0.00019725,2]
[348129672,1736346639166,-188.24499,0.00019725,2]
[348129673,1736346639175,-151.0,0.00019725,2]
[348129674,1736346639185,-201.25655,0.00019725,2]
[348129675,1736346639195,-44971.69235869,0.00019726,5]
[348129676,1736346639205,-3162.42187306,0.00019726,5]
[348129677,1736346639216,-926.2807845,0.00019726,5]
[348129678,1736346639351,-496.3407641,0.00019726,5]
[348129679,1736346639364,-463.99780197,0.00019726,5]
[348129763,1736346643568,-4999.57233769,0.00019726,5]
[348130036,1736346646332,-500.0,0.00019178,2]
[348130038,1736346646341,-500.0,0.00019452,3]
[348130041,1736346646351,-1288.46501904,0.00019726,5]
[348130043,1736346646360,-175.746465,0.00019726,2]
[348130045,1736346646369,-175.746465,0.00019726,2]
[348130046,1736346646379,-151.0,0.00019726,2]
[348130048,1736346646388,-151.0,0.00019726,2]
[348130050,1736346646398,-151.0,0.00019726,2]
[348130053,1736346646407,-151.0,0.00019726,2]
[348130055,1736346646418,-151.0,0.00019726,2]
[348130058,1736346646426,-152.033969,0.00019726,2]
[348130061,1736346646436,-151.549985,0.00019726,2]
[348130064,1736346646446,-151.0,0.00019726,2]
[348130067,1736346646456,-151.0,0.00019726,2]
[348130070,1736346646466,-151.0,0.00019726,2]
[348130073,1736346646476,-284.761058,0.00019726,2]
[348130075,1736346646485,-151.0,0.00019726,2]
[348130077,1736346646494,-151.0,0.00019726,2]
[348130079,1736346646503,-29.19703896,0.00019726,3]
[348130402,1736346659304,300.0,0.00018986,2]
[348130403,1736346663046,874.00204808,0.000189,2]
[348130404,1736346699543,2000.00000099,0.00019,2]
[348130405,1736346722048,540.15548323,0.00018975,2]
[348130406,1736346846991,1000.0,0.00025,120]
[348130410,1736346982434,167.051486,0.00013973,2]
[348130417,1736347638145,-485.37895315,0.00016506,2]
[348130418,1736347640141,-985.29104685,0.00016506,2]
[348130419,1736347640165,-2670.65925207,0.00016672,2]
[348130420,1736347646131,-1908.44522593,0.00016672,2]
[348130421,1736347646155,-14550.0,0.00016973,2]
[348130422,1736347646179,-300.0,0.00016973,2]
[348130423,1736347646205,-2401.34547375,0.00016974,2]
[348130424,1736347648113,-438.9199996,0.00016974,2]
[348130425,1736347751169,-707.8557456,0.00016636,2]
[348130426,1736347751191,-557.8557456,0.00016804,2]
[348130427,1736347751214,-377.93438262,0.00016974,2]
[348130428,1736347755106,-5485.52931153,0.00016974,2]
[348130429,1736347755129,-443.87476612,0.00017793,2]
[348130430,1736347755153,-300.0,0.00017823,2]
[348130431,1736347755177,-517.13975267,0.00017824,2]
[348130432,1736347766091,-24382.86024733,0.00017824,2]
[348130433,1736347766112,-532.5000683,0.00017893,2]
[348130434,1736347766134,-201.7126713,0.00017971,2]
[348130435,1736347766156,-348.642013,0.00018079,2]
[348130436,1736347766177,-2.15829379,0.00018111,2]
[348130437,1736347766203,-203.39692901,0.00018111,2]
[348130438,1736347766227,-488.2454982,0.00018133,2]
[348130439,1736347774126,-443.87476606,0.00018549,2]
[348130440,1736347774150,-155.83,0.0001874,2]
[348130441,1736347774174,-792.232,0.0001874,2]
[348130442,1736347774197,-353.0175454,0.00018841,2]
[348130443,1736347774224,-353.0175454,0.00018941,2]
[348130444,1736347774249,-955.49188445,0.00019,2]
[348130445,1736347774275,-630.43564322,0.00019067,2]
[348130471,1736347832915,-76.43903943,0.00019067,2]
[348130472,1736347832926,-882.97156157,0.00019159,2]
[348130473,1736347832938,-500.0,0.00019173,2]
[348130474,1736347832949,-500.0,0.00019173,2]
[348130475,1736347832959,-500.0,0.00019173,2]
[348130476,1736347832969,-300.0,0.00019176,2]
[348130477,1736347832979,-344.526,0.00019177,2]
[348130478,1736347832989,-500.0,0.00019177,2]
[348130479,1736347832999,-500.0,0.00019177,2]
[348130481,1736347833009,-500.0,0.00019177,2]
[348130482,1736347833019,-200.0,0.00019177,2]
[348130483,1736347833030,-239.61458011,0.00019177,2]
[348130484,1736347833041,-237.93345934,0.00019177,2]
[348130485,1736347833051,-278.95465991,0.00019177,2]
[348130486,1736347833062,-500.0,0.00019177,2]
[348130487,1736347833073,-192.7030269,0.00019177,2]
[348130488,1736347833088,-500.0,0.00019177,2]
[348130489,1736347833098,-500.0,0.00019177,2]
[348130491,1736347833108,-500.0,0.00019177,2]
[348130493,1736347833118,-500.0,0.00019177,2]
[348130495,1736347833129,-500.0,0.00019177,2]
[348130497,1736347833139,-500.0,0.00019177,2]
[348130499,1736347833150,-500.0,0.00019177,2]
[348130501,1736347833160,-500.0,0.00019177,2]
[348130503,1736347833170,-500.0,0.00019177,2]
[348130505,1736347833181,-414.15135561,0.00019177,2]
[348130507,1736347833191,-500.0,0.00019178,2]
[348130509,1736347833202,-500.0,0.00019178,2]
[348130511,1736347833213,-501.40251031,0.00019178,2]
[348130513,1736347833223,-243.84385685,0.00019178,2]
[348130515,1736347833242,-43.28276178,0.00019178,2]
[348130517,1736347833251,-500.0,0.00019178,2]
[348130520,1736347833262,-500.0,0.00019178,2]
[348130522,1736347833273,-425.22171654,0.00019178,2]
[348130523,1736347833283,-500.0,0.00019178,2]
[348130526,1736347833295,-500.0,0.00019178,2]
[348130528,1736347833306,-500.0,0.00019178,2]
[348130530,1736347833318,-500.0,0.00019178,2]
[348130532,1736347833331,-500.0,0.00019178,2]
[348130534,1736347833341,-506.13210555,0.00019178,2]
[348130536,1736347833351,-500.0,0.00019178,2]
[348130538,1736347833364,-500.0,0.00019178,2]
[348130540,1736347833375,-500.0,0.00019178,2]
[348130542,1736347833384,-500.0,0.00019178,2]
[348130544,1736347833395,-500.0,0.00019178,2]
[348130546,1736347833405,-500.0,0.00019178,2]
[348130548,1736347833415,-500.0,0.00019178,2]
[348130550,1736347833425,-500.0,0.00019178,2]
[348130552,1736347833435,-500.0,0.00019178,2]
[348130554,1736347833445,-506.26052135,0.00019178,2]
[348130556,1736347833455,-500.0,0.00019178,2]
[348130558,1736347833465,-500.0,0.00019178,2]
[348130560,1736347833475,-500.0,0.00019178,2]
[348130562,1736347833486,-500.0,0.00019178,2]
[348130564,1736347833497,-500.0,0.00019178,2]
[348130566,1736347833506,-500.0,0.00019178,2]
[348130568,1736347833516,-501.75152974,0.00019178,2]
[348130570,1736347833526,-500.0,0.00019178,2]
[348130572,1736347833536,-500.0,0.00019178,2]
[348130574,1736347833546,-431.32709826,0.00019178,2]
[348130576,1736347833556,-268.59,0.00019178,5]
[348130577,1736347833567,-500.0,0.00019178,2]
[348130580,1736347833581,-500.0,0.00019178,2]
[348130582,1736347833593,-500.0,0.00019178,2]
[348130584,1736347833604,-500.0,0.00019178,2]
[348130586,1736347833614,-500.0,0.00019178,2]
[348130588,1736347833624,-2738.15,0.00019178,2]
[348130590,1736347833634,-316.42685491,0.00019178,2]
[348130592,1736347833644,-500.0,0.00019178,2]
[348130594,1736347833654,-500.0,0.00019178,2]
[348130596,1736347833664,-500.0,0.00019178,2]
[348130609,1736347833791,-151.0,0.00019178,2]
[348130611,1736347833802,-500.0,0.00019178,2]
[348130613,1736347833812,-500.0,0.00019178,2]
[348130615,1736347833821,-500.0,0.00019178,2]
[348130617,1736347833834,-500.0,0.00019178,2]
[348130619,1736347833845,-500.0,0.00019178,2]